{"text_format":"3","workbook":"xlsx","n_sheets":5,"sheets":["Tablou de bord","Cheltuieli și venituri","Raport de buget","Liste de date","PivotTable categorii"],"not_rendered":{"charts":3,"defined_names":18,"pivot_tables":2},"read":"whole","date_system":"1900"}

{"sheet":"Tablou de bord","index":0,"n_rows":21,"n_cols":16,"rows_kept":21,"merged":[[5,2,5,3],[8,9,8,10],[9,9,9,10],[10,9,10,10]]}
[]
[null,null,"Buget familiar bilunar",{"$nulls":12},"TABLOU DE BORD"]
[]
[]
[]
[null,null,{"$f":"CHOOSE(NrLună,\"Ianuarie\",\"Februarie\",\"Martie\",\"Aprilie\",\"Mai\",\"Iunie\",\"Iulie\",\"August\",\"Septembrie\",\"Octombrie\",\"Noiembrie\",\"Decembrie\")","v":"August"},null,8,{"$nulls":5},2012]
[]
[]
[null,null,"TOTALURI LUNARE","Monthly Totals",{"$nulls":5},"TOTALURI ANUALE",null,"Annual Totals"]
[null,null,"VENIT","Cheltuieli",{"$f":"SUMIF(Cheltuieli[DATĂ],\"<=\"&DatăLunăSfârșit,Cheltuieli[SUMĂ])-SUMIF(Cheltuieli[DATĂ],\"<\"&DatăLunăÎnceput,Cheltuieli[SUMĂ])","v":{"v":0,"d":"0 lei"}},{"$nulls":4},"VENIT",null,"Cheltuieli",{"$f":"SUM(IF(YEAR(Cheltuieli[DATĂ])=K6,Cheltuieli[SUMĂ]))","v":{"v":8675,"d":"8,675 lei"}}]
[null,null,"CHELTUIELI","venit",{"$f":"SUMIF(venit[DATĂ],\"<=\"&DatăLunăSfârșit,venit[SUMĂ])-SUMIF(venit[DATĂ],\"<\"&DatăLunăÎnceput,venit[SUMĂ])","v":{"v":0,"d":"0 lei"}},{"$nulls":4},"CHELTUIELI",null,"venit",{"$f":"SUM(IF(YEAR(venit[DATĂ])=K6,venit[SUMĂ]))","v":{"v":12700,"d":"12,700 lei"}}]
[]
[]
[]
[]
[]
[{"$nulls":3},"IANUARIE","FEBRUARIE","MARTIE","APRILIE","MAI","IUNIE","IULIE","AUGUST","SEPTEMBRIE","OCTOMBRIE","NOIEMBRIE","DECEMBRIE"]
[null,null,"Venit 1-15",{"$f":"SUMIFS(venit[SUMĂ],venit[DESCRIERE],\"<=\"&ZoMijloc,venit[DESCRIERE],\">=\"&ZoÎnceput)","v":{"v":0,"d":"0.00 lei"}},{"$f":"SUMIFS(venit[SUMĂ],venit[DESCRIERE],\"<=\"&ZoMijloc,venit[DESCRIERE],\">=\"&ZoÎnceput)","v":{"v":0,"d":"0.00 lei"}},{"$f":"SUMIFS(venit[SUMĂ],venit[DESCRIERE],\"<=\"&ZoMijloc,venit[DESCRIERE],\">=\"&ZoÎnceput)","v":{"v":0,"d":"0.00 lei"}},{"$f":"SUMIFS(venit[SUMĂ],venit[DESCRIERE],\"<=\"&ZoMijloc,venit[DESCRIERE],\">=\"&ZoÎnceput)","v":{"v":0,"d":"0.00 lei"}},{"$f":"SUMIFS(venit[SUMĂ],venit[DESCRIERE],\"<=\"&ZoMijloc,venit[DESCRIERE],\">=\"&ZoÎnceput)","v":{"v":0,"d":"0.00 lei"}},{"$f":"SUMIFS(venit[SUMĂ],venit[DESCRIERE],\"<=\"&ZoMijloc,venit[DESCRIERE],\">=\"&ZoÎnceput)","v":{"v":0,"d":"0.00 lei"}},{"$f":"SUMIFS(venit[SUMĂ],venit[DESCRIERE],\"<=\"&ZoMijloc,venit[DESCRIERE],\">=\"&ZoÎnceput)","v":{"v":0,"d":"0.00 lei"}},{"$f":"SUMIFS(venit[SUMĂ],venit[DESCRIERE],\"<=\"&ZoMijloc,venit[DESCRIERE],\">=\"&ZoÎnceput)","v":{"v":0,"d":"0.00 lei"}},{"$f":"SUMIFS(venit[SUMĂ],venit[DESCRIERE],\"<=\"&ZoMijloc,venit[DESCRIERE],\">=\"&ZoÎnceput)","v":{"v":0,"d":"0.00 lei"}},{"$f":"SUMIFS(venit[SUMĂ],venit[DESCRIERE],\"<=\"&ZoMijloc,venit[DESCRIERE],\">=\"&ZoÎnceput)","v":{"v":0,"d":"0.00 lei"}},{"$f":"SUMIFS(venit[SUMĂ],venit[DESCRIERE],\"<=\"&ZoMijloc,venit[DESCRIERE],\">=\"&ZoÎnceput)","v":{"v":0,"d":"0.00 lei"}},{"$f":"SUMIFS(venit[SUMĂ],venit[DESCRIERE],\"<=\"&ZoMijloc,venit[DESCRIERE],\">=\"&ZoÎnceput)","v":{"v":0,"d":"0.00 lei"}}]
[null,null,"Venit 16-EOM",{"$f":"SUMIFS(venit[SUMĂ],venit[DESCRIERE],\"<=\"&ZoSfârșit,venit[DESCRIERE],\">=\"&ZoMijloc+1)","v":{"v":0,"d":"0.00 lei"}},{"$f":"SUMIFS(venit[SUMĂ],venit[DESCRIERE],\"<=\"&ZoSfârșit,venit[DESCRIERE],\">=\"&ZoMijloc+1)","v":{"v":0,"d":"0.00 lei"}},{"$f":"SUMIFS(venit[SUMĂ],venit[DESCRIERE],\"<=\"&ZoSfârșit,venit[DESCRIERE],\">=\"&ZoMijloc+1)","v":{"v":0,"d":"0.00 lei"}},{"$f":"SUMIFS(venit[SUMĂ],venit[DESCRIERE],\"<=\"&ZoSfârșit,venit[DESCRIERE],\">=\"&ZoMijloc+1)","v":{"v":0,"d":"0.00 lei"}},{"$f":"SUMIFS(venit[SUMĂ],venit[DESCRIERE],\"<=\"&ZoSfârșit,venit[DESCRIERE],\">=\"&ZoMijloc+1)","v":{"v":0,"d":"0.00 lei"}},{"$f":"SUMIFS(venit[SUMĂ],venit[DESCRIERE],\"<=\"&ZoSfârșit,venit[DESCRIERE],\">=\"&ZoMijloc+1)","v":{"v":0,"d":"0.00 lei"}},{"$f":"SUMIFS(venit[SUMĂ],venit[DESCRIERE],\"<=\"&ZoSfârșit,venit[DESCRIERE],\">=\"&ZoMijloc+1)","v":{"v":0,"d":"0.00 lei"}},{"$f":"SUMIFS(venit[SUMĂ],venit[DESCRIERE],\"<=\"&ZoSfârșit,venit[DESCRIERE],\">=\"&ZoMijloc+1)","v":{"v":0,"d":"0.00 lei"}},{"$f":"SUMIFS(venit[SUMĂ],venit[DESCRIERE],\"<=\"&ZoSfârșit,venit[DESCRIERE],\">=\"&ZoMijloc+1)","v":{"v":0,"d":"0.00 lei"}},{"$f":"SUMIFS(venit[SUMĂ],venit[DESCRIERE],\"<=\"&ZoSfârșit,venit[DESCRIERE],\">=\"&ZoMijloc+1)","v":{"v":0,"d":"0.00 lei"}},{"$f":"SUMIFS(venit[SUMĂ],venit[DESCRIERE],\"<=\"&ZoSfârșit,venit[DESCRIERE],\">=\"&ZoMijloc+1)","v":{"v":0,"d":"0.00 lei"}},{"$f":"SUMIFS(venit[SUMĂ],venit[DESCRIERE],\"<=\"&ZoSfârșit,venit[DESCRIERE],\">=\"&ZoMijloc+1)","v":{"v":0,"d":"0.00 lei"}}]
[null,null,"Cheltuieli 1-15",{"$f":"SUMIFS(Cheltuieli[SUMĂ],Cheltuieli[DATĂ],\"<=\"&ZoMijloc,Cheltuieli[DATĂ],\">=\"&ZoÎnceput)","v":{"v":0,"d":"0.00 lei"}},{"$f":"SUMIFS(Cheltuieli[SUMĂ],Cheltuieli[DATĂ],\"<=\"&ZoSfârșit,Cheltuieli[DATĂ],\">=\"&ZoÎnceput)","v":{"v":0,"d":"0.00 lei"}},{"$f":"SUMIFS(Cheltuieli[SUMĂ],Cheltuieli[DATĂ],\"<=\"&ZoSfârșit,Cheltuieli[DATĂ],\">=\"&ZoÎnceput)","v":{"v":0,"d":"0.00 lei"}},{"$f":"SUMIFS(Cheltuieli[SUMĂ],Cheltuieli[DATĂ],\"<=\"&ZoSfârșit,Cheltuieli[DATĂ],\">=\"&ZoÎnceput)","v":{"v":0,"d":"0.00 lei"}},{"$f":"SUMIFS(Cheltuieli[SUMĂ],Cheltuieli[DATĂ],\"<=\"&ZoSfârșit,Cheltuieli[DATĂ],\">=\"&ZoÎnceput)","v":{"v":0,"d":"0.00 lei"}},{"$f":"SUMIFS(Cheltuieli[SUMĂ],Cheltuieli[DATĂ],\"<=\"&ZoSfârșit,Cheltuieli[DATĂ],\">=\"&ZoÎnceput)","v":{"v":0,"d":"0.00 lei"}},{"$f":"SUMIFS(Cheltuieli[SUMĂ],Cheltuieli[DATĂ],\"<=\"&ZoSfârșit,Cheltuieli[DATĂ],\">=\"&ZoÎnceput)","v":{"v":0,"d":"0.00 lei"}},{"$f":"SUMIFS(Cheltuieli[SUMĂ],Cheltuieli[DATĂ],\"<=\"&ZoSfârșit,Cheltuieli[DATĂ],\">=\"&ZoÎnceput)","v":{"v":0,"d":"0.00 lei"}},{"$f":"SUMIFS(Cheltuieli[SUMĂ],Cheltuieli[DATĂ],\"<=\"&ZoSfârșit,Cheltuieli[DATĂ],\">=\"&ZoÎnceput)","v":{"v":1075,"d":"1,075.00 lei"}},{"$f":"SUMIFS(Cheltuieli[SUMĂ],Cheltuieli[DATĂ],\"<=\"&ZoSfârșit,Cheltuieli[DATĂ],\">=\"&ZoÎnceput)","v":{"v":5500,"d":"5,500.00 lei"}},{"$f":"SUMIFS(Cheltuieli[SUMĂ],Cheltuieli[DATĂ],\"<=\"&ZoSfârșit,Cheltuieli[DATĂ],\">=\"&ZoÎnceput)","v":{"v":1750,"d":"1,750.00 lei"}},{"$f":"SUMIFS(Cheltuieli[SUMĂ],Cheltuieli[DATĂ],\"<=\"&ZoSfârșit,Cheltuieli[DATĂ],\">=\"&ZoÎnceput)","v":{"v":1567,"d":"1,567.00 lei"}}]
[null,null,"Cheltuieli 16-EOM",{"$f":"SUMIFS(Cheltuieli[SUMĂ],Cheltuieli[DATĂ],\"<=\"&ZoSfârșit,Cheltuieli[DATĂ],\">=\"&ZoMijloc+1)","v":{"v":0,"d":"0.00 lei"}},{"$f":"SUMIFS(Cheltuieli[SUMĂ],Cheltuieli[DATĂ],\"<=\"&ZoSfârșit,Cheltuieli[DATĂ],\">=\"&ZoMijloc+1)","v":{"v":0,"d":"0.00 lei"}},{"$f":"SUMIFS(Cheltuieli[SUMĂ],Cheltuieli[DATĂ],\"<=\"&ZoSfârșit,Cheltuieli[DATĂ],\">=\"&ZoMijloc+1)","v":{"v":0,"d":"0.00 lei"}},{"$f":"SUMIFS(Cheltuieli[SUMĂ],Cheltuieli[DATĂ],\"<=\"&ZoSfârșit,Cheltuieli[DATĂ],\">=\"&ZoMijloc+1)","v":{"v":0,"d":"0.00 lei"}},{"$f":"SUMIFS(Cheltuieli[SUMĂ],Cheltuieli[DATĂ],\"<=\"&ZoSfârșit,Cheltuieli[DATĂ],\">=\"&ZoMijloc+1)","v":{"v":0,"d":"0.00 lei"}},{"$f":"SUMIFS(Cheltuieli[SUMĂ],Cheltuieli[DATĂ],\"<=\"&ZoSfârșit,Cheltuieli[DATĂ],\">=\"&ZoMijloc+1)","v":{"v":0,"d":"0.00 lei"}},{"$f":"SUMIFS(Cheltuieli[SUMĂ],Cheltuieli[DATĂ],\"<=\"&ZoSfârșit,Cheltuieli[DATĂ],\">=\"&ZoMijloc+1)","v":{"v":0,"d":"0.00 lei"}},{"$f":"SUMIFS(Cheltuieli[SUMĂ],Cheltuieli[DATĂ],\"<=\"&ZoSfârșit,Cheltuieli[DATĂ],\">=\"&ZoMijloc+1)","v":{"v":0,"d":"0.00 lei"}},{"$f":"SUMIFS(Cheltuieli[SUMĂ],Cheltuieli[DATĂ],\"<=\"&ZoSfârșit,Cheltuieli[DATĂ],\">=\"&ZoMijloc+1)","v":{"v":1075,"d":"1,075.00 lei"}},{"$f":"SUMIFS(Cheltuieli[SUMĂ],Cheltuieli[DATĂ],\"<=\"&ZoSfârșit,Cheltuieli[DATĂ],\">=\"&ZoMijloc+1)","v":{"v":5350,"d":"5,350.00 lei"}},{"$f":"SUMIFS(Cheltuieli[SUMĂ],Cheltuieli[DATĂ],\"<=\"&ZoSfârșit,Cheltuieli[DATĂ],\">=\"&ZoMijloc+1)","v":{"v":1675,"d":"1,675.00 lei"}},{"$f":"SUMIFS(Cheltuieli[SUMĂ],Cheltuieli[DATĂ],\"<=\"&ZoSfârșit,Cheltuieli[DATĂ],\">=\"&ZoMijloc+1)","v":{"v":0,"d":"0.00 lei"}}]

{"sheet":"Cheltuieli și venituri","index":1,"n_rows":40,"n_cols":10,"rows_kept":40}
[]
[null,null,"Buget familiar bilunar",{"$nulls":6},"VENITURI ȘI CHELTUIELI"]
[]
[]
[]
[null,null,"VENIT",{"$nulls":3},"CHELTUIELI"]
[]
[null,null,"DATĂ","DESCRIERE","SUMĂ",null,"DATĂ","CATEGORIE","DESCRIERE","SUMĂ"]
[null,null,{"$f":"NOW()-14","v":"2012-12-27T10:24:20.930"},"Nota de plată a lui Iulian",{"v":1300,"d":"1,300.00 lei"},null,{"$f":"NOW()-7","v":"2013-01-03T10:24:20.930"},"Obiecte gospodărești","Ipotecă",{"v":1000,"d":"1,000.00 lei"}]
[null,null,{"$f":"NOW()-14","v":"2012-12-27T10:24:20.930"},"Nota de plată a Cristinei",{"v":1300,"d":"1,300.00 lei"},null,{"$f":"NOW()-7","v":"2013-01-03T10:24:20.930"},"Obiecte gospodărești","Electricitate",{"v":100,"d":"100.00 lei"}]
[null,null,{"$f":"NOW()-28","v":"2012-12-13T10:24:20.930"},"Nota de plată a lui Iulian",{"v":1500,"d":"1,500.00 lei"},null,"2013-01-03T10:24:20.930","Obiecte gospodărești","Apă/canalizare",{"v":50,"d":"50.00 lei"}]
[null,null,"2012-12-13T10:24:20.930","Nota de plată a Cristinei",{"v":1600,"d":"1,600.00 lei"},null,"2013-01-03T10:24:20.930","Obiecte gospodărești","Gunoi",{"v":25,"d":"25.00 lei"}]
[null,null,{"$f":"NOW()-42","v":"2012-11-29T10:24:20.930"},"Nota de plată a lui Iulian",{"v":1300,"d":"1,300.00 lei"},null,"2013-01-03T10:24:20.930","Obiecte gospodărești","Telefon mobil",{"v":100,"d":"100.00 lei"}]
[null,null,"2012-11-29T10:24:20.930","Nota de plată a Cristinei",{"v":1300,"d":"1,300.00 lei"},null,"2013-01-03T10:24:20.930","Obiecte gospodărești","Telefon domiciliu",{"v":30,"d":"30.00 lei"}]
[null,null,{"$f":"NOW()-56","v":"2012-11-15T10:24:20.930"},"Nota de plată a lui Iulian",{"v":1500,"d":"1,500.00 lei"},null,"2013-01-03T10:24:20.930","Obiecte gospodărești","Internet",{"v":50,"d":"50.00 lei"}]
[null,null,"2012-11-15T10:24:20.930","Nota de plată a Cristinei",{"v":1600,"d":"1,600.00 lei"},null,"2013-01-03T10:24:20.930","Obiecte gospodărești","Cablu TV",{"v":50,"d":"50.00 lei"}]
[null,null,{"$f":"NOW()-70","v":"2012-11-01T10:24:20.930"},"Nota de plată a lui Iulian",{"v":1300,"d":"1,300.00 lei"},null,"2013-01-03T10:24:20.930","Obiecte gospodărești","Întreținere/reparații",{"v":25,"d":"25.00 lei"}]
[{"$nulls":6},{"$f":"NOW()-8","v":"2013-01-02T10:24:20.930"},"Obiecte gospodărești","Card de credit 1 ",{"v":100,"d":"100.00 lei"}]
[{"$nulls":6},{"$f":"NOW()-9","v":"2013-01-01T10:24:20.930"},"Divertisment","Filme",{"v":37,"d":"37.00 lei"}]
[{"$nulls":6},{"$f":"NOW()-10","v":"2012-12-31T10:24:20.930"},"Alimente","Alimente",{"v":350,"d":"350.00 lei"}]
[{"$nulls":6},{"$f":"NOW()-11","v":"2012-12-30T10:24:20.930"},"Alimente","Masa în oraș",{"v":75,"d":"75.00 lei"}]
[{"$nulls":6},{"$f":"NOW()-12","v":"2012-12-29T10:24:20.930"},"Copii","Bani de prânz",{"v":150,"d":"150.00 lei"}]
[{"$nulls":6},{"$f":"NOW()-13","v":"2012-12-28T10:24:20.930"},"Conturi de investiții","Economii",{"v":250,"d":"250.00 lei"}]
[{"$nulls":6},{"$f":"NOW()-14","v":"2012-12-27T10:24:20.930"},"Conturi de investiții","Cont de investiții",{"v":250,"d":"250.00 lei"}]
[{"$nulls":6},{"$f":"NOW()-15","v":"2012-12-26T10:24:20.930"},"Personal","Club de sănătate/fitness",{"v":100,"d":"100.00 lei"}]
[{"$nulls":6},{"$f":"NOW()-16","v":"2012-12-25T10:24:20.930"},"Animale de companie","Alimente",{"v":50,"d":"50.00 lei"}]
[{"$nulls":6},{"$f":"NOW()-20","v":"2012-12-21T10:24:20.930"},"Animale de companie","Îngrijire",{"v":50,"d":"50.00 lei"}]
[{"$nulls":6},{"$f":"NOW()-20","v":"2012-12-21T10:24:20.930"},"Animale de companie","Altele",{"v":50,"d":"50.00 lei"}]
[{"$nulls":6},{"$f":"NOW()-25","v":"2012-12-16T10:24:20.930"},"Transport","Plată mașină 1",{"v":300,"d":"300.00 lei"}]
[{"$nulls":6},{"$f":"NOW()-25","v":"2012-12-16T10:24:20.930"},"Transport","Plată mașină 1",{"v":350,"d":"350.00 lei"}]
[{"$nulls":6},{"$f":"NOW()-25","v":"2012-12-16T10:24:20.930"},"Transport","Asigurare auto",{"v":50,"d":"50.00 lei"}]
[{"$nulls":6},{"$f":"NOW()-30","v":"2012-12-11T10:24:20.930"},"Transport","Benzină",{"v":50,"d":"50.00 lei"}]
[{"$nulls":6},{"$f":"NOW()-31","v":"2012-12-10T10:24:20.930"},"Transport","Benzină",{"v":25,"d":"25.00 lei"}]
[{"$nulls":6},{"$f":"NOW()-42","v":"2012-11-29T10:24:20.930"},"Transport","Întreținere/Reparații",{"v":150,"d":"150.00 lei"}]
[{"$nulls":6},{"$f":"NOW()-45","v":"2012-11-26T10:24:20.930"},"Obiecte gospodărești","Ipotecă",{"v":5000,"d":"5,000.00 lei"}]
[{"$nulls":6},{"$f":"NOW()-50","v":"2012-11-21T10:24:20.930"},"Obiecte gospodărești","Resurse",{"v":200,"d":"200.00 lei"}]
[{"$nulls":6},{"$f":"NOW()-65","v":"2012-11-06T10:24:20.930"},"Obiecte gospodărești","Telefon domiciliu",{"v":100,"d":"100.00 lei"}]
[{"$nulls":6},{"$f":"NOW()-70","v":"2012-11-01T10:24:20.930"},"Obiecte gospodărești","Gunoi",{"v":50,"d":"50.00 lei"}]
[{"$nulls":6},{"$f":"NOW()-75","v":"2012-10-27T10:24:20.930"},"Obiecte gospodărești","Ipotecă",{"v":1000,"d":"1,000.00 lei"}]
[{"$nulls":6},{"$f":"NOW()-78","v":"2012-10-24T10:24:20.930"},"Divertisment","Filme",{"v":75,"d":"75.00 lei"}]

{"sheet":"Raport de buget","index":2,"n_rows":39,"n_cols":8,"rows_kept":39}
[]
[null,null,"Buget familiar bilunar",{"$nulls":4},"RAPORT BUGET"]
{"$rows_empty":10}
[null,null,"CHELTUIELI",null,null,"TOTALURI CATEGORIE"]
[]
[null,null,"DESCRIERE","TOTALURI"]
[null,null,"Alimente",{"v":400,"d":"400 lei"}]
[null,null,"Altele",{"v":50,"d":"50 lei"}]
[null,null,"Apă/canalizare",{"v":50,"d":"50 lei"}]
[null,null,"Asigurare auto",{"v":50,"d":"50 lei"}]
[null,null,"Bani de prânz",{"v":150,"d":"150 lei"}]
[null,null,"Benzină",{"v":75,"d":"75 lei"}]
[null,null,"Cablu TV",{"v":50,"d":"50 lei"}]
[null,null,"Card de credit 1 ",{"v":100,"d":"100 lei"}]
[null,null,"Club de sănătate/fitness",{"v":100,"d":"100 lei"}]
[null,null,"Economii",{"v":250,"d":"250 lei"}]
[null,null,"Electricitate",{"v":100,"d":"100 lei"}]
[null,null,"Filme",{"v":112,"d":"112 lei"}]
[null,null,"Gunoi",{"v":75,"d":"75 lei"}]
[null,null,"Internet",{"v":50,"d":"50 lei"}]
[null,null,"Ipotecă",{"v":7000,"d":"7,000 lei"}]
[null,null,"Îngrijire",{"v":50,"d":"50 lei"}]
[null,null,"Întreținere/reparații",{"v":175,"d":"175 lei"}]
[null,null,"Masa în oraș",{"v":75,"d":"75 lei"}]
[null,null,"Plată mașină 1",{"v":650,"d":"650 lei"}]
[null,null,"Resurse",{"v":200,"d":"200 lei"}]
[null,null,"Telefon domiciliu",{"v":130,"d":"130 lei"}]
[null,null,"Telefon mobil",{"v":100,"d":"100 lei"}]
[null,null,"Cont de investiții",{"v":250,"d":"250 lei"}]
[null,null,"TOTAL",{"v":10242,"d":"10,242 lei"}]

{"sheet":"Liste de date","index":3,"n_rows":20,"n_cols":14,"rows_kept":20}
[]
[null,null,"Buget familiar bilunar",{"$nulls":10},"LISTE DE DATE"]
[]
[]
[null,null,"CONFIGURARE         Datele Categorie de mai jos sunt completate în listele verticale din tabelul Cheltuieli din foaia Cheltuieli și venituri. Modificați numele categoriilor sau descrierile de sub fiecare categorie pentru a actualiza listele."]
[]
[null,null,"Obiecte gospodărești","Divertisment","Alimente","Cadouri/Donații","Copii","Conturi de investiții","Control medical","Altele","Personal","Animale de companie","Taxe/Legal","Transport"]
[null,null,"Ipotecă","Filme","Alimente","Caritate 1","Haine","PENSIE PRIVATĂ","Doctor/Clinică","Altele","Îmbrăcăminte","Alimente","Naționale","Plată mașină 1"]
[null,null,"Electricitate","Video/Filme","Masa în oraș","Caritate 2","Jucării/jocuri","Economii","Asigurare","Taxe organizare","Păr/Unghii","Resurse","Județene","Plată mașină 2"]
[null,null,"Apă/Canalizare","Muzică",null,"Caritate 3","Bani de prânz","Revizuiri",null,null,"Curățătorie","Control medical","Locale","Asigurare auto"]
[null,null,"Gunoi","Concerte/Teatru",null,"Cadou","Taxe/Tarife","Pensie",null,null,"Club de sănătate/fitness","Îngrijire","Altele","Licențe/Înregistrare"]
[null,null,"Telefon mobil","Evenimente sportive",null,null,"Rechizite școlare","Cont de investiții",null,null,"Cumpărături","Altele","Avocat","Benzină"]
[null,null,"Telefon domiciliu","Altele",null,null,"Altele","Colegiu",null,null,"Altele",null,"Întreținere copil","Întreținere/Reparații"]
[null,null,"Internet",{"$nulls":3},"Spălătorie","Împrumuturi",{"$nulls":4},"Pensie alimentară","Transport public"]
[null,null,"Cablu TV",{"$nulls":4},"Împrumut pentru studii",{"$nulls":4},"Altele"]
[null,null,"Întreținere/Reparații"]
[null,null,"Resurse"]
[null,null,"Cablu/Internet/Telefon"]
[null,null,"Card de credit 1 "]
[null,null,"Card de credit 2 "]

{"sheet":"PivotTable categorii","index":4,"n_rows":16,"n_cols":14,"rows_kept":16,"hidden":true}
[]
[null,null,"Buget familiar bilunar",{"$nulls":10},"PIVOT CATEGORIE"]
[]
[]
[null,"Acest PivotTable este sursa de date pentru raportul PivotChart Totaluri categorie din Raportul de buget. "]
[]
[null,null,"Etichete de rânduri","Sumă de SUMĂ"]
[null,null,"Alimente",{"v":425,"d":"425 lei"}]
[null,null,"Animale de companie",{"v":150,"d":"150 lei"}]
[null,null,"Conturi de investiții",{"v":500,"d":"500 lei"}]
[null,null,"Copii",{"v":150,"d":"150 lei"}]
[null,null,"Divertisment",{"v":112,"d":"112 lei"}]
[null,null,"Obiecte gospodărești",{"v":7880,"d":"7,880 lei"}]
[null,null,"Personal",{"v":100,"d":"100 lei"}]
[null,null,"Transport",{"v":925,"d":"925 lei"}]
[null,null,"Total general",{"v":10242,"d":"10,242 lei"}]